bitfinex/quotes_BTCUSD_20250829
["timestamp","ask_amount","ask_price","bid_price","bid_amount"]
[1756461940076,0.00733759,110100.0,110090.0,0.34209954]
[1756461940291,0.00833759,110100.0,110090.0,0.34209954]
[1756461941343,0.002,110100.0,110090.0,1.37463089]
[1756461941554,0.002,110100.0,110090.0,0.36941454]
[1756461941770,0.002,110100.0,110090.0,0.36949454]
[1756461943133,0.002,110100.0,110090.0,0.21393454]
[1756461943592,0.002,110100.0,110090.0,0.36973454]
[1756461944885,0.002,110100.0,110090.0,1.40226589]
[1756461946514,0.002,110100.0,110090.0,0.36973454]
[1756461946990,0.002,110100.0,110090.0,0.41024584]
[1756461950051,0.002,110100.0,110090.0,1.44277719]
[1756461950684,0.01050219,110100.0,110090.0,1.44277719]
[1756461951107,0.01050219,110100.0,110090.0,0.41024584]
[1756461953131,0.01050219,110100.0,110090.0,0.41080584]
[1756461953132,0.002,110100.0,110090.0,0.41080584]
[1756461953308,0.01050133,110100.0,110090.0,0.41080584]
[1756461954282,0.01050133,110100.0,110090.0,0.25444584]
[1756461954668,1.04303268,110100.0,110090.0,0.25242584]
[1756461954887,1.04303268,110100.0,110090.0,0.40894584]
[1756461955371,0.0275067,110100.0,110090.0,0.40894584]
[1756461955815,0.20915974,110100.0,110090.0,0.40894584]
[1756461956023,0.0275067,110100.0,110090.0,0.36843454]
[1756461956650,0.0275067,110100.0,110090.0,0.37039454]
[1756461956870,1.24169109,110100.0,110090.0,0.027315]
[1756461957082,0.18166954,110090.0,110080.0,0.25155107]
[1756461957294,1.23470759,110090.0,110080.0,0.41167107]
[1756461957507,1.05803805,110090.0,110080.0,0.41167107]
[1756461957954,0.0255067,110090.0,110080.0,0.41363107]
[1756461959038,1.23970759,110090.0,110080.0,0.25155107]
[1756461959261,1.23970759,110090.0,110080.0,0.40879107]
[1756461959262,1.24608957,110090.0,110080.0,0.40879107]
[1756461959495,1.06442003,110090.0,110080.0,0.41179107]
[1756461959716,0.21355822,110090.0,110080.0,0.40879107]
[1756461959945,1.06442003,110090.0,110080.0,0.41179107]
[1756461960164,0.21355822,110090.0,110080.0,0.41179107]
[1756461960372,1.06442003,110090.0,110080.0,0.41179107]
[1756461960582,1.06442003,110090.0,110080.0,0.41375107]
[1756461960802,0.03188868,110090.0,110080.0,0.41375107]
[1756461961012,1.24608957,110090.0,110080.0,0.41375107]
[1756461962116,0.21355822,110090.0,110080.0,0.41375107]
[1756461962334,1.24608957,110090.0,110080.0,0.41375107]
[1756461962751,1.24612608,110090.0,110080.0,0.41375107]
[1756461966122,0.02341277,110090.0,110080.0,0.41375107]
[1756461966332,0.03192663,110090.0,110080.0,0.41375107]
[1756461967176,1.06445798,110090.0,110080.0,0.41375107]
[1756461971161,0.03192663,110090.0,110080.0,0.41375107]
[1756461973331,1.28525224,110110.0,110100.0,0.18165304]
[1756461973570,0.18165304,110100.0,110090.0,0.18165455]
[1756461973773,1.06445731,110100.0,110090.0,0.34213455]
[1756461973978,1.24611035,110100.0,110090.0,0.34213455]
[1756461974224,1.24611035,110100.0,110090.0,0.34513455]
[1756461974440,1.06445731,110100.0,110090.0,0.34513455]
[1756461974660,0.03192596,110100.0,110090.0,0.34513455]
[1756461974892,1.06445731,110100.0,110090.0,0.34513455]
[1756461975327,0.03192596,110100.0,110090.0,0.34513455]
[1756461975563,1.06445731,110100.0,110090.0,0.34513455]
[1756461975784,1.06545731,110100.0,110090.0,0.34513455]
[1756461975999,1.24711035,110100.0,110090.0,0.34513455]
[1756461976309,1.24811035,110100.0,110090.0,0.34513455]
[1756461976527,0.215579,110100.0,110090.0,0.34513455]
[1756461976738,1.24811035,110100.0,110090.0,0.34513455]
[1756461976890,1.24811381,110100.0,110090.0,0.34513455]
[1756461977103,1.06646077,110100.0,110090.0,0.34513455]
[1756461978421,0.03392942,110100.0,110090.0,0.34513455]
[1756461978629,1.06646077,110100.0,110090.0,0.34513455]
[1756461979264,0.03392942,110100.0,110090.0,0.34513455]
[1756461979478,1.06646077,110100.0,110090.0,0.34513455]
[1756461979919,0.03392942,110100.0,110090.0,0.34513455]
[1756461980132,0.03392942,110100.0,110090.0,0.41576537]
[1756461980318,0.03392942,110100.0,110090.0,0.50406169]
[1756461980319,0.02754423,110100.0,110090.0,0.50406169]
[1756461980624,0.02754514,110100.0,110090.0,0.53137669]
[1756461980841,0.02754514,110100.0,110090.0,0.57155647]
[1756461984130,0.02754914,110100.0,110090.0,0.34240565]
[1756461984345,1.06008049,110100.0,110090.0,0.50096565]
[1756461985218,1.06646826,110100.0,110090.0,0.50096565]
[1756461985459,0.02754914,110100.0,110090.0,0.50096565]
[1756461989258,0.01051638,110100.0,110090.0,0.50096565]
[1756461989476,0.01051638,110100.0,110090.0,0.57195647]
[1756461989923,0.01051638,110100.0,110090.0,1.60448782]
[1756461990123,0.01051638,110100.0,110090.0,0.57195647]
[1756461990124,0.00951638,110100.0,110090.0,0.57195647]
[1756461990312,0.00951638,110100.0,110090.0,0.57223647]
[1756461990567,0.00851638,110100.0,110090.0,0.57223647]
[1756461991222,0.00851638,110100.0,110090.0,0.57215647]
[1756461992531,0.00851638,110100.0,110090.0,0.41303647]
[1756461992751,0.00851638,110100.0,110090.0,0.57215647]
[1756461994629,0.01672876,110110.0,110100.0,0.18165304]
[1756461994927,0.04225223,110110.0,110100.0,0.27303936]
[1756461995429,0.04225223,110110.0,110100.0,0.30240136]
[1756461995679,0.04225223,110110.0,110100.0,0.46124136]
[1756461995936,0.04225223,110110.0,110100.0,0.30240136]
[1756461996113,0.04225223,110110.0,110100.0,0.46120136]
[1756461997241,0.02652347,110110.0,110100.0,0.46120136]
[1756461997382,0.02752347,110110.0,110100.0,0.51113143]
[1756461997603,0.01050782,110110.0,110100.0,0.46120136]
[1756462002178,0.00950782,110110.0,110100.0,0.46120136]
[1756462003063,0.00850782,110110.0,110100.0,0.46120136]
[1756462004170,0.00850782,110110.0,110100.0,0.80120136]
[1756462004411,0.00850782,110110.0,110100.0,0.85113143]
[1756462004636,0.00850782,110110.0,110100.0,1.83373271]
[1756462005297,1.01278551,110140.0,110130.0,0.18160355]
[1756462005504,1.04476844,110140.0,110130.0,0.34056355]
[1756462006179,1.04476844,110140.0,110130.0,0.34052355]
[1756462006599,1.22635551,110140.0,110130.0,0.34048355]
[1756462007016,1.06451428,110140.0,110130.0,0.34048355]
[1756462007426,1.07974538,110140.0,110130.0,0.34048355]
[1756462008304,1.07974538,110140.0,110130.0,0.34253355]
[1756462008559,1.26133245,110140.0,110130.0,0.34556355]
[1756462008796,1.26133245,110140.0,110130.0,0.34563355]
[1756462009028,1.07974538,110140.0,110130.0,0.34563355]
[1756462009270,1.07974538,110140.0,110130.0,0.34351355]
[1756462009498,1.07974538,110140.0,110130.0,0.34563355]
[1756462010442,0.04721403,110140.0,110130.0,0.34563355]
[1756462010724,1.07974538,110140.0,110130.0,0.34563355]
[1756462012391,1.07974289,110140.0,110130.0,0.34563355]
[1756462013698,1.07974289,110140.0,110130.0,0.18675355]
[1756462013847,1.07974289,110140.0,110130.0,0.34523355]
[1756462015154,0.57974289,110140.0,110130.0,0.18675355]
[1756462015358,0.57974289,110140.0,110130.0,0.34515355]
[1756462015590,0.57974289,110140.0,110130.0,0.34507355]
[1756462018134,0.01481197,110140.0,110130.0,0.34491355]
[1756462018347,1.04734332,110140.0,110130.0,0.34491355]
[1756462018549,1.03253135,110140.0,110130.0,0.34491355]
[1756462020134,0.1819728,110150.0,110140.0,0.18158707]
[1756462020379,1.21450415,110150.0,110140.0,0.18158707]
[1756462020806,1.21450415,110150.0,110140.0,0.18461707]
[1756462021193,0.0004,110150.0,110140.0,0.18673707]
[1756462021401,0.0024,110150.0,110140.0,0.25657707]
[1756462021604,1.03493135,110150.0,110140.0,0.44180007]
[1756462022168,0.0024,110150.0,110140.0,0.44180007]
[1756462022600,0.0024,110150.0,110140.0,0.44172007]
[1756462023030,0.0024,110150.0,110140.0,0.28388007]
[1756462023250,0.0004,110150.0,110140.0,0.44168007]
[1756462023927,0.0014,110150.0,110140.0,0.44168007]
[1756462024830,0.0004,110150.0,110140.0,0.44168007]
[1756462027183,0.00889948,110150.0,110140.0,0.44168007]
[1756462027614,0.02589844,110150.0,110140.0,0.44168007]
[1756462028226,0.02589844,110150.0,110140.0,1.47421142]
[1756462029731,0.02589844,110150.0,110140.0,0.44168007]
[1756462029938,0.02589844,110150.0,110140.0,1.47421142]
[1756462030580,0.00889948,110150.0,110140.0,1.47421142]
[1756462031292,0.00889948,110150.0,110140.0,0.44168007]
[1756462031507,0.00889948,110150.0,110140.0,1.47421142]
[1756462031719,0.00889948,110150.0,110140.0,0.44168007]
[1756462031947,0.00889948,110150.0,110140.0,0.28388007]
[1756462032172,0.00889948,110150.0,110140.0,0.44116007]
[1756462032398,0.025899,110150.0,110140.0,0.44124007]
[1756462033066,0.025899,110150.0,110140.0,0.44184007]
[1756462033510,0.025899,110150.0,110140.0,1.60132904]
[1756462035134,0.94973227,110160.0,110150.0,0.18157058]
[1756462035354,0.00637656,110160.0,110150.0,0.18460058]
[1756462035566,0.00637656,110160.0,110150.0,0.18672058]
[1756462035977,1.26420912,110170.0,110150.0,0.18672058]
[1756462035978,1.27058574,110170.0,110160.0,0.1815541]
[1756462036188,1.27058574,110170.0,110160.0,0.3393941]
[1756462036415,0.23086541,110170.0,110160.0,0.3414241]
[1756462036613,1.26150886,110170.0,110160.0,0.3414241]
[1756462036832,1.26150886,110170.0,110160.0,0.3404241]
[1756462037298,1.26350886,110170.0,110160.0,0.3404241]
[1756462037512,1.26550886,110170.0,110160.0,0.3404241]
[1756462037720,1.26537286,110170.0,110160.0,0.3404241]
[1756462037891,1.26537286,110170.0,110160.0,0.1795541]
[1756462038096,1.26537286,110170.0,110160.0,0.3373541]
[1756462038294,1.16537286,110170.0,110160.0,0.1578]
[1756462039055,1.16537286,110170.0,110160.0,0.3393541]
[1756462041451,1.16537286,110170.0,110160.0,0.3423141]
[1756462041654,1.13807086,110170.0,110160.0,0.3423141]
[1756462042088,1.13807086,110170.0,110160.0,0.3444241]
[1756462042372,1.13934969,110170.0,110160.0,0.3423141]
[1756462042573,0.18553771,110170.0,110160.0,0.3423141]
[1756462042779,1.21618116,110170.0,110160.0,0.3393541]
[1756462043599,1.23108491,110170.0,110160.0,0.3393541]
[1756462044496,1.23108491,110170.0,110160.0,0.3423141]
[1756462045339,1.23108491,110170.0,110160.0,0.3393541]
[1756462045571,1.31938123,110170.0,110160.0,0.3393541]
[1756462046012,1.31938123,110170.0,110160.0,0.3423141]
[1756462046232,1.23108491,110170.0,110160.0,0.3423141]
[1756462046501,0.20044146,110170.0,110160.0,0.3423141]
[1756462046727,0.20044146,110170.0,110160.0,0.3444241]
[1756462046728,1.23108491,110170.0,110160.0,0.3444241]
[1756462046949,0.20044146,110170.0,110160.0,0.3444241]
[1756462047171,0.22597371,110170.0,110160.0,0.3444241]
[1756462050905,0.31427003,110170.0,110160.0,0.15704]
[1756462051121,1.34491348,110170.0,110160.0,0.15704]
[1756462051341,1.34491348,110170.0,110160.0,0.3385941]
[1756462051571,1.34491348,110170.0,110160.0,0.3415541]
[1756462051791,1.34491348,110170.0,110160.0,0.15704]
[1756462052210,1.34491348,110170.0,110160.0,0.15408807]
[1756462052426,1.34491348,110170.0,110160.0,0.33564217]
[1756462052583,1.25661716,110170.0,110160.0,0.33564217]
[1756462054201,1.2630102,110170.0,110160.0,0.33564217]
[1756462054400,1.2630102,110170.0,110160.0,0.33775217]
[1756462054600,0.23236675,110170.0,110160.0,0.33775217]
[1756462054831,0.23241441,110170.0,110160.0,0.33775217]
[1756462055489,1.42005313,110170.0,110160.0,0.33775217]
[1756462055696,1.42005313,110170.0,110160.0,0.33564217]
[1756462056308,0.23241441,110170.0,110160.0,0.33775217]
[1756462056583,1.39172359,110170.0,110160.0,0.33775217]
[1756462057346,1.38321326,110170.0,110160.0,0.33775217]
[1756462057555,1.39176562,110170.0,110160.0,0.33775217]
[1756462058423,0.05091873,110170.0,110160.0,0.33775217]
[1756462058564,0.05091873,110170.0,110160.0,1.49706135]
[1756462061227,0.05091856,110170.0,110160.0,1.49706135]
[1756462061873,0.05091856,110170.0,110160.0,0.33775217]
[1756462062094,0.05091856,110170.0,110160.0,1.49706135]
[1756462065924,0.05091856,110170.0,110160.0,0.33775217]
[1756462066141,0.05091856,110170.0,110160.0,1.49706135]
[1756462066794,0.05091856,110170.0,110160.0,0.33775217]
[1756462067017,0.05091856,110170.0,110160.0,1.49706135]
[1756462067854,0.23245618,110170.0,110160.0,1.50249328]
[1756462068063,0.22391758,110170.0,110160.0,0.3431841]
[1756462068309,1.39174623,110170.0,110160.0,0.3431841]
[1756462068684,1.39174584,110170.0,110160.0,0.3431841]
[1756462068885,1.48004216,110170.0,110160.0,0.3431841]
[1756462069091,1.48004216,110170.0,110160.0,0.1866241]
[1756462069341,1.48004216,110170.0,110150.0,0.2926211]
[1756462069507,0.32073298,110170.0,110160.0,0.3412641]
[1756462069704,1.48004216,110170.0,110160.0,0.15656]
[1756462069917,1.48004216,110170.0,110160.0,0.3381141]
[1756462070179,0.23043666,110170.0,110160.0,0.3412641]
[1756462070395,1.38774584,110170.0,110160.0,0.3412641]
[1756462070607,1.38974584,110170.0,110160.0,0.3412641]
[1756462071034,1.38774584,110170.0,110160.0,0.3412641]
[1756462071267,0.23043666,110170.0,110160.0,0.3412641]
[1756462071484,1.39174584,110170.0,110160.0,0.3433541]
[1756462071952,1.21020822,110170.0,110160.0,0.3433541]
[1756462072373,1.20820822,110170.0,110160.0,0.3433541]
[1756462072593,0.23243666,110170.0,110160.0,0.3433541]
[1756462072813,1.39174584,110170.0,110160.0,0.3433541]
[1756462073234,1.21020822,110170.0,110160.0,0.3433541]
[1756462074482,0.05089904,110170.0,110160.0,0.3433541]
[1756462074631,1.21020822,110170.0,110160.0,0.3433541]
[1756462075062,0.05089904,110170.0,110160.0,0.3433541]
[1756462075260,1.21020794,110170.0,110160.0,0.3433541]
[1756462076114,1.39174556,110170.0,110160.0,0.3433541]
[1756462076340,1.21020794,110170.0,110160.0,0.3433541]
[1756462076739,1.45271563,110170.0,110160.0,0.3412641]
[1756462076971,1.45271563,110170.0,110160.0,0.3433541]
[1756462078108,1.45271563,110170.0,110160.0,0.00315]
[1756462078323,1.45271563,110170.0,110160.0,0.3381141]
[1756462078514,1.27117801,110170.0,110160.0,0.3433541]
[1756462078766,1.4463262,110170.0,110160.0,0.3433541]
[1756462078913,1.45271749,110170.0,110160.0,0.3433541]
[1756462079505,1.39174742,110170.0,110160.0,0.3433541]
[1756462080110,1.2102098,110170.0,110160.0,0.3433541]
[1756462080335,1.39174742,110170.0,110160.0,0.3433541]
[1756462081396,1.39174761,110170.0,110160.0,0.3433541]
[1756462081612,1.21020999,110170.0,110160.0,0.3433541]
[1756462081747,0.05090081,110170.0,110160.0,0.3433541]
[1756462081962,1.21020999,110170.0,110160.0,0.3433541]
[1756462083079,1.39174761,110170.0,110160.0,0.3433541]
[1756462083286,0.05090081,110170.0,110160.0,0.3433541]
[1756462083493,1.42009668,110170.0,110160.0,0.3433541]
[1756462083726,0.03599706,110170.0,110160.0,0.3433541]
[1756462083927,0.03599706,110170.0,110160.0,0.2566341]
[1756462084127,1.19530624,110170.0,110160.0,0.2566341]
[1756462084328,1.19530624,110170.0,110160.0,0.4132341]
[1756462085088,1.22276102,110170.0,110160.0,0.4132341]
[1756462085488,1.22076102,110170.0,110160.0,0.4132341]
[1756462085699,1.22076102,110170.0,110160.0,0.4142341]
[1756462085901,0.05945184,110170.0,110160.0,0.4142341]
[1756462086131,1.21876102,110170.0,110160.0,0.4142341]
[1756462086566,0.05945184,110170.0,110160.0,0.4142341]
[1756462086773,1.21876102,110170.0,110160.0,0.4142341]
[1756462088255,1.21237099,110170.0,110160.0,0.4142341]
[1756462088512,1.21876338,110170.0,110160.0,0.4142341]
[1756462088728,0.0594542,110170.0,110160.0,0.4142341]
[1756462088959,1.1913086,110170.0,110160.0,0.4142341]
[1756462089177,0.03199942,110170.0,110160.0,0.4142341]
[1756462089532,0.03199942,110170.0,110160.0,1.57354328]
[1756462089738,0.03199942,110170.0,110160.0,0.4142341]
[1756462089945,0.03199942,110170.0,110160.0,1.57354328]
[1756462090153,0.03199942,110170.0,110160.0,0.4142341]
[1756462090966,0.03199942,110170.0,110160.0,0.50253042]
[1756462091166,0.00856813,110170.0,110160.0,1.6618396]
[1756462091369,0.00856813,110170.0,110160.0,1.6891366]
[1756462092256,0.00856813,110170.0,110160.0,3.18844578]
[1756462092617,0.00856813,110170.0,110160.0,1.8725366]
[1756462092837,0.00856813,110170.0,110160.0,2.0288166]
[1756462093476,0.00856813,110170.0,110160.0,1.89960431]
[1756462094876,0.00856813,110170.0,110160.0,0.71322742]
[1756462095077,0.00856813,110170.0,110160.0,0.86946742]
[1756462096129,0.00856813,110170.0,110160.0,0.71322742]
[1756462096340,1.03866502,110170.0,110160.0,0.4411711]
[1756462096559,0.00856813,110170.0,110160.0,0.4138741]
[1756462098827,0.00855472,110170.0,110160.0,0.4138741]
[1756462099283,0.00855471,110170.0,110160.0,0.4138741]
[1756462101883,0.00855471,110170.0,110160.0,0.4136341]
[1756462102088,0.00855471,110170.0,110160.0,0.4409311]
[1756462102332,0.00855471,110170.0,110160.0,1.55932431]
[1756462102533,0.00855471,110170.0,110160.0,0.52922742]
[1756462102734,0.00855466,110170.0,110160.0,0.52922742]
[1756462103392,0.00855466,110170.0,110160.0,1.55932431]
[1756462103629,0.00855466,110170.0,110160.0,0.52922742]
[1756462103842,0.00855466,110170.0,110160.0,1.55932431]
[1756462104258,0.00855466,110170.0,110160.0,0.86922742]
[1756462104461,0.00855466,110170.0,110160.0,1.89932431]
[1756462105625,0.00855466,110170.0,110160.0,1.89832431]
[1756462105830,0.00855466,110170.0,110160.0,1.90332431]
[1756462106469,0.00855466,110170.0,110160.0,1.90344431]
[1756462108843,0.00855466,110170.0,110160.0,1.90340431]
[1756462109744,4.766e-05,110170.0,110160.0,1.90340431]
[1756462109975,0.0085491,110170.0,110160.0,1.90340431]
[1756462111264,4.766e-05,110170.0,110160.0,1.90340431]
[1756462111450,4.766e-05,110170.0,110160.0,0.87330742]
[1756462111652,0.00854856,110170.0,110160.0,1.90340431]
[1756462113910,0.0085495,110170.0,110160.0,1.90340431]
[1756462114961,0.0085495,110170.0,110160.0,0.71722742]
[1756462115172,0.0085495,110170.0,110160.0,1.90308431]
[1756462120588,0.00855426,110170.0,110160.0,1.90308431]
[1756462122490,0.00855426,110170.0,110160.0,1.74732431]
[1756462122723,0.00855426,110170.0,110160.0,1.90284431]
[1756462123500,0.00855426,110170.0,110160.0,0.87274742]
[1756462123710,0.00855426,110170.0,110160.0,0.71722742]
[1756462123857,0.00855426,110170.0,110160.0,2.03134027]
[1756462124061,0.0085547,110170.0,110160.0,2.03134027]
[1756462125193,0.0085547,110170.0,110160.0,0.87266742]
[1756462125388,0.0085547,110170.0,110160.0,2.03134027]
[1756462126377,0.98404153,110190.0,110180.0,0.18152114]
[1756462126602,0.02757238,110200.0,110190.0,0.18150467]
[1756462126832,0.051015,110200.0,110190.0,0.33694467]
[1756462127830,1.20968785,110200.0,110190.0,0.33694467]
[1756462128054,0.02384262,110200.0,110190.0,0.33999467]
[1756462128266,1.18251547,110200.0,110190.0,0.33999467]
[1756462128665,1.18351547,110200.0,110190.0,0.33999467]
[1756462128874,1.18451547,110200.0,110190.0,0.33999467]
[1756462129017,0.02584262,110200.0,110190.0,0.33999467]
[1756462129447,0.00244766,110200.0,110190.0,0.38363693]
[1756462129793,0.00244766,110200.0,110190.0,0.40884693]
[1756462130376,0.00144766,110200.0,110190.0,0.40884693]
[1756462130821,1.03215525,110200.0,110190.0,0.25035693]
[1756462131024,1.03215525,110200.0,110190.0,0.40591693]
[1756462131231,0.00244766,110200.0,110190.0,0.40591693]
[1756462131452,0.00244766,110200.0,110190.0,0.04156226]
[1756462131453,1.21164345,110200.0,110190.0,0.04156226]
[1756462131667,0.1815242,110180.0,110170.0,0.15552]
[1756462131876,1.23463726,110180.0,110170.0,0.33705762]
[1756462132107,1.23463726,110180.0,110160.0,0.26040584]
[1756462132108,0.18153762,110170.0,110150.0,0.28857592]
[1756462132257,0.20494319,110170.0,110160.0,0.3371141]
[1756462132876,0.20494319,110170.0,110160.0,0.3370741]
[1756462133082,0.02340557,110170.0,110160.0,0.3370741]
[1756462133295,0.02340557,110170.0,110160.0,0.3402741]
[1756462133507,1.05311316,110170.0,110160.0,0.3370741]
[1756462133718,1.05311316,110170.0,110160.0,0.3423541]
[1756462133960,1.0467287,110170.0,110160.0,0.3423541]
[1756462134178,0.01702111,110170.0,110160.0,0.3423541]
[1756462134387,0.01702111,110170.0,110160.0,0.50045042]
[1756462134606,1.02970759,110190.0,110170.0,0.18153762]
[1756462134841,0.02338953,110190.0,110180.0,0.35043015]
[1756462135041,0.00044766,110200.0,110190.0,0.18050467]
[1756462135251,0.00044766,110200.0,110190.0,0.18478467]
[1756462135459,1.0471634,110200.0,110190.0,0.34622467]
[1756462135804,0.01745581,110200.0,110190.0,0.34622467]
[1756462136051,0.01745581,110200.0,110190.0,0.34522467]
[1756462136330,1.0471634,110200.0,110190.0,0.34522467]
[1756462136466,0.01745581,110200.0,110190.0,0.41402467]
[1756462136678,0.01745581,110200.0,110190.0,0.41502467]
[1756462137081,1.03015525,110200.0,110190.0,0.41502467]
[1756462138069,1.03015525,110200.0,110190.0,0.41490467]
[1756462138285,1.03015525,110200.0,110190.0,0.41590467]
[1756462138508,1.03865696,110200.0,110190.0,0.41590467]
[1756462138695,1.03865696,110200.0,110190.0,0.24930467]
[1756462139099,1.03865696,110200.0,110190.0,0.41050467]
[1756462139862,1.03865696,110200.0,110190.0,0.24930467]
[1756462140083,1.03865696,110200.0,110190.0,0.41042467]
[1756462140293,1.22014516,110200.0,110190.0,0.24930467]
[1756462140517,1.22014516,110200.0,110190.0,0.41438467]
[1756462140518,0.23435853,110200.0,110190.0,0.41438467]
[1756462140729,1.06203438,110200.0,110190.0,0.41438467]
[1756462141138,1.05353336,110200.0,110190.0,0.41438467]
[1756462141341,1.06203408,110200.0,110190.0,0.41438467]
[1756462141550,1.05565823,110200.0,110190.0,0.41758467]
[1756462141763,1.05565823,110200.0,110190.0,0.41966467]
[1756462141969,1.05565823,110200.0,110190.0,0.41758467]
[1756462142190,0.02595064,110200.0,110190.0,0.41758467]
[1756462142388,1.23714643,110200.0,110190.0,0.41438467]
[1756462142606,2.30184844,110200.0,110190.0,0.002]
[1756462142828,2.33447581,110200.0,110190.0,0.16284]
[1756462143265,2.33397581,110200.0,110190.0,0.002]
[1756462143470,2.49481581,110200.0,110190.0,0.002]
[1756462144305,2.47786589,110200.0,110190.0,0.002]
[1756462144931,2.50516189,110200.0,110190.0,0.002]
[1756462145395,0.18150467,110190.0,110180.0,0.1608]
[1756462145599,1.31438503,110190.0,110180.0,0.1608]
[1756462145810,0.28467744,110190.0,110180.0,0.1608]
[1756462146019,1.31438503,110190.0,110180.0,0.1608]
[1756462147055,1.31438503,110190.0,110180.0,0.1658]
[1756462147474,0.01487487,110190.0,110180.0,0.34732114]
[1756462147678,1.22608713,110190.0,110180.0,0.35052114]
[1756462147913,1.04458246,110190.0,110180.0,0.35052114]
[1756462148121,0.01487487,110190.0,110180.0,0.35260114]
[1756462148338,1.04458246,110190.0,110180.0,0.35260114]
[1756462148750,0.01487487,110190.0,110180.0,0.35260114]
[1756462148965,0.00849914,110190.0,110180.0,0.44089746]
[1756462149831,1.03820673,110190.0,110180.0,0.28009746]
[1756462150061,1.03820673,110190.0,110180.0,0.44057746]
[1756462150730,1.2197114,110190.0,110180.0,0.18652114]
[1756462150998,1.31438113,110190.0,110180.0,0.34692114]
[1756462151253,1.30800772,110190.0,110180.0,0.35012114]
[1756462151497,1.31437952,110190.0,110180.0,0.1686]
[1756462151766,1.31437977,110190.0,110180.0,0.1686]
[1756462151988,1.31437977,110190.0,110180.0,0.1654]
[1756462152242,1.31437988,110190.0,110180.0,0.34692114]
[1756462153201,1.31437988,110190.0,110180.0,0.1654]
[1756462153422,1.31437988,110190.0,110180.0,0.16528]
[1756462154315,1.31437988,110190.0,110180.0,0.005]
[1756462154522,1.31437988,110190.0,110180.0,0.1652]
[1756462154955,1.31437861,110190.0,110180.0,0.1652]
[1756462155196,1.33137322,110190.0,110180.0,0.1652]
[1756462156442,1.33137322,110190.0,110180.0,0.005]
[1756462157289,1.33137322,110190.0,110180.0,0.003]
[1756462157747,1.33137145,110190.0,110180.0,0.003]
[1756462158325,1.33137003,110190.0,110180.0,0.003]
[1756462159092,0.18152114,110180.0,110170.0,0.41212737]
[1756462159330,1.3313865,110180.0,110170.0,0.41517737]
[1756462159554,0.03186145,110180.0,110170.0,0.41726737]
[1756462159774,0.03186145,110180.0,110170.0,0.25730737]
[1756462160008,1.06156904,110180.0,110170.0,0.41714737]
[1756462160879,1.06156904,110180.0,110170.0,0.41822737]
[1756462161323,1.05519617,110180.0,110170.0,0.41822737]
[1756462161585,0.20700972,110180.0,110170.0,0.41822737]
[1756462161798,1.23671731,110180.0,110170.0,0.41822737]
[1756462162013,1.23671993,110180.0,110170.0,0.41822737]
[1756462162224,1.06157326,110180.0,110170.0,0.41722737]
[1756462162506,1.06157427,110180.0,110170.0,0.41722737]
[1756462162715,1.24309541,110180.0,110170.0,0.41822737]
[1756462163292,1.24309541,110180.0,110170.0,0.41922737]
[1756462163478,1.33139173,110180.0,110170.0,0.41922737]
[1756462165582,1.33139689,110180.0,110170.0,0.16465]
[1756462165797,1.33139689,110180.0,110170.0,0.00505]
[1756462165998,1.33139689,110180.0,110170.0,0.1616]
[1756462166210,1.33139689,110180.0,110170.0,0.16465]
[1756462166810,1.33139689,110180.0,110170.0,0.34618762]
[1756462166968,1.33139689,110180.0,110170.0,0.002]
[1756462167186,1.33139689,110180.0,110170.0,0.16164]
[1756462167418,1.33139689,110180.0,110170.0,0.34831762]
[1756462168012,1.06157943,110180.0,110170.0,0.34831762]
[1756462168170,0.21339298,110180.0,110170.0,0.34831762]
[1756462168603,0.03081381,110180.0,110170.0,0.34831762]
[1756462170566,0.21233495,110180.0,110170.0,0.34831762]
[1756462170968,1.24204254,110180.0,110170.0,0.34831762]
[1756462172813,1.23462874,110180.0,110170.0,0.34831762]
[1756462173328,1.0531076,110180.0,110170.0,0.34831762]
[1756462173540,0.8426278,110180.0,110170.0,0.34831762]
[1756462173755,0.01702519,110180.0,110170.0,0.34831762]
[1756462174964,0.19854633,110180.0,110170.0,0.34831762]
[1756462175284,0.01702519,110180.0,110170.0,0.34831762]
[1756462180164,0.19854633,110180.0,110170.0,0.18867762]
[1756462180354,0.19854633,110180.0,110170.0,0.34759762]
[1756462180592,0.19854633,110180.0,110170.0,0.00714]
[1756462180837,0.19854633,110180.0,110170.0,0.002]
[1756462180838,1.23677282,110180.0,110170.0,0.002]
[1756462181058,1.23677282,110180.0,110170.0,0.1608]
[1756462181282,1.32506914,110180.0,110170.0,0.34233762]
[1756462181508,1.32506914,110180.0,110170.0,0.002]
[1756462181716,1.32506914,110180.0,110170.0,0.1608]
[1756462181969,1.32506914,110180.0,110170.0,0.002]
[1756462182172,1.32506914,110180.0,110170.0,0.16076]
[1756462182604,1.32506914,110180.0,110170.0,0.16072]
[1756462183503,1.32506914,110180.0,110170.0,0.16377]
[1756462183693,0.2953807,110180.0,110170.0,0.16377]
[1756462183842,1.23679197,110180.0,110170.0,0.16377]
[1756462184047,1.23679197,110180.0,110170.0,0.16072]
[1756462184476,1.23679197,110180.0,110170.0,0.16377]
[1756462185529,1.24318362,110180.0,110170.0,0.1606]
[1756462185685,1.26281956,110180.0,110170.0,0.15468852]
[1756462186088,1.50963588,110180.0,110170.0,0.15468852]
[1756462187059,0.18153762,110170.0,110160.0,0.00305]
[1756462187331,1.2432001,110170.0,110160.0,0.16153]
[1756462187878,1.27495376,110170.0,110160.0,0.16362]
[1756462188090,0.24524617,110170.0,110160.0,0.16362]
[1756462188286,0.26205614,110170.0,110160.0,0.3451741]
[1756462189399,0.26205614,110170.0,110160.0,0.3461741]
[1756462189614,0.26205614,110170.0,110160.0,0.3471741]
[1756462190015,0.26205614,110170.0,110160.0,0.16562]
[1756462190481,0.26205614,110170.0,110160.0,0.3471741]
[1756462192462,0.26205614,110170.0,110160.0,0.16562]
[1756462192733,0.26205614,110170.0,110160.0,0.00714]
[1756462192931,0.26205614,110170.0,110160.0,0.16309]
[1756462193134,0.26205614,110170.0,110160.0,0.16004]
[1756462193774,0.26205614,110170.0,110160.0,0.16326]
[1756462193914,0.26205614,110170.0,110160.0,0.16522]
[1756462194125,0.23862233,110170.0,110160.0,0.16522]
[1756462194323,0.26203649,110170.0,110160.0,0.16522]
[1756462194568,0.26203649,110170.0,110160.0,0.16622]
[1756462194743,0.26203649,110170.0,110160.0,0.3477741]
[1756462197266,0.26203649,110170.0,110160.0,0.1897341]
[1756462197472,0.26203649,110170.0,110160.0,0.3475341]
[1756462197895,0.26203526,110170.0,110160.0,0.3475341]
[1756462200980,0.26203373,110170.0,110160.0,0.3475341]
[1756462203764,0.26203163,110170.0,110160.0,0.3475341]
[1756462203974,0.26203163,110170.0,110160.0,0.1897341]
[1756462204178,0.26203163,110170.0,110160.0,0.3470941]
[1756462204641,0.26203163,110170.0,110160.0,0.3470541]
[1756462206513,1.29173922,110170.0,110160.0,0.3470541]
[1756462207552,0.26203163,110170.0,110160.0,0.3469741]
[1756462207757,1.29173922,110170.0,110160.0,0.3469741]
[1756462207938,1.29173922,110170.0,110160.0,0.00818]